Cogmind - Beta 13 *** ADVENTURER MODE // 2024.04.06 @ 16:36:24 Player: LosPedros Result: Self-destructed Performance ------------- Evolutions (1) 500 Regions Visited (3) 600 Robots Destroyed (22) 110 Value Destroyed (427) 427 Prototype IDs (0) 0 Alien Tech Used (0) 0 Bonus (0) 0 TOTAL SCORE: 1637 Bonus ------- None Cogmind --------- Core Integrity 362/400 Matter 173/300 Energy 250/250 System Corruption 0% Temperature Cool (0) Movement Walking (120) Location -9/Materials Parts ------- > --- POWER (1) -------- Ion Engine > --- PROPULSION (4) --- Aluminum Leg Aluminum Leg Aluminum Leg > --- UTILITY (2) ------ Improved Heat Sink Small Storage Unit > --- WEAPON (2) ------- Assault Rifle Assault Rifle > --- INVENTORY (8) ---- Ion Engine Light Ion Engine Light Ion Engine Medium Laser Medium Laser Medium Laser Light Assault Rifle Grenade Launcher Peak State ------------ > --- POWER ------------ Ion Engine > --- PROPULSION ------- Aluminum Leg Aluminum Leg Aluminum Leg > --- UTILITY ---------- Improved Heat Sink Small Storage Unit > --- WEAPON ----------- Assault Rifle Assault Rifle > --- INVENTORY -------- Ion Engine Light Ion Engine Light Ion Engine Medium Laser Medium Laser Medium Laser Light Assault Rifle Grenade Launcher [Rating: 10] Favorites ----------- Power Ion Engine Engine Ion Engine Propulsion Wheel Leg Aluminum Leg Wheel Wheel Utility Small Storage Unit Device Improved Heat Sink Storage Small Storage Unit Weapon Assault Rifle Ballistic Gun Assault Rifle Build | -11 -10 -10 -9 ------- Run | Yrd Mat Min Mat Slots Evolved 2 | . . . 2 Power . | . . . . Propulsion 2 | . . . 2 Utility . | . . . . Weapon . | . . . . Parts Attached 10 | 6 . 3 1 Power 1 | 1 . . . Engine 1 | 1 . . . Core . | . . . . Reactor . | . . . . Propulsion 5 | 2 . 2 1 Treads . | . . . . Leg 3 | . . 2 1 Wheel 2 | 2 . . . Hover . | . . . . Flight . | . . . . Utility 2 | 1 . 1 . Device 1 | . . 1 . Storage 1 | 1 . . . Processor . | . . . . Hackware . | . . . . Protection . | . . . . Artifact . | . . . . Weapon 2 | 2 . . . Energy Gun . | . . . . Energy Cannon . | . . . . Ballistic Gun 2 | 2 . . . Ballistic Cannon . | . . . . Launcher . | . . . . Special Weapon . | . . . . Impact Weapon . | . . . . Slashing Weapon . | . . . . Piercing Weapon . | . . . . Special Melee Weapon . | . . . . Unidentified Prototypes . | . . . . Parts Lost 1 | . . 1 . Power . | . . . . Propulsion 1 | . . 1 . Utility . | . . . . Weapon . | . . . . Highest Loss Streak 1 | . . 1 . To Critical Strikes . | . . . . Average Slot Usage (%) 87 | . 85 92 80 Engine 13 | . 14 14 11 Leg 10 | . . 6 25 Wheel 16 | . 28 20 . Device 6 | . . 7 11 Storage 13 | . 14 14 11 Ballistic Gun 26 | . 28 28 22 Naked Turns . | . . . . Heaviest Build 15 | 14 14 15 15 Greatest Support 30 | 20 20 20 30 Greatest Overweight (x) 1 | . . 1 . Average Overweight (x) . | . . . . Largest Inventory Capacity 8 | 8 8 8 8 Average Capacity 7 | 6 8 8 8 Most Carried 8 | 4 8 8 8 Average Carried 7 | 2 6 7 8 Final Capacity 8 | 8 8 8 8 Final Carried 8 | 4 8 8 8 Class Distribution -------------------- 100% | Mutant Dominant Class ---------------- Mutant | -10/Materials Mutant | -10/Mines Mutant | -9/Materials Resources | -11 -10 -10 -9 ----------- Run | Yrd Mat Min Mat Matter Collected 484 | 187 51 211 35 Remotely . | . . . . Salvage Created 535 | . 154 265 116 Parts 46 | . 18 21 7 Haulers Intercepted . | . . . . Recyclers Shooed . | . . . . Parts Field Recycled . | . . . . Retrieved Matter . | . . . . Parts Self-Destructed . | . . . . Prevented . | . . . . Kills | -11 -10 -10 -9 ------- Run | Yrd Mat Min Mat Combat Hostiles Destroyed 22 | . 9 10 3 Guns 22 | . 9 10 3 Classes Destroyed 2 | . 1 1 . Swarmer 15 | . 9 6 . Grunt 7 | . . 4 3 Best Kill Streak 6 | . 6 4 2 Combat Bots Only 6 | . 6 4 2 Max Kills in Single Turn 2 | . 1 2 1 Gunslinging 1 | . . 1 . Exploded . | . . . . Melee . | . . . . Uniques/NPCs Destroyed . | . . . . Combat | -11 -10 -10 -9 -------- Run | Yrd Mat Min Mat Hostile Shots Fired 99 | . 31 43 25 Missed 32 | . 13 12 7 Damage Taken 511 | . 107 232 172 Core 150 | . 26 86 38 Absorbed by Shields . | . . . . Ignored by Resistances 164 | . 36 75 53 Core Remaining (%) 77 | 100 . 55 . Volleys Fired 53 | . 13 27 13 Largest 2 | . 2 2 2 Hottest 40 | . 40 40 40 Shots Fired 106 | . 26 54 26 Gun 106 | . 26 54 26 Cannon . | . . . . Launcher . | . . . . Special . | . . . . Kinetic 106 | . 26 54 26 Thermal . | . . . . Explosive . | . . . . Electromagnetic . | . . . . Robot Hit Streak 22 | . 4 8 22 Robot Miss Streak 4 | . 4 3 . Penetration Max . | . . . . Secondary Targets 2 | . . 2 . Max Gunslinging Chain 1 | . . 1 . Shots Hit Robots 65 | . 11 33 21 Core Hits 31 | . 9 14 8 Critical Kills . | . . . . Critical Parts Destroyed 1 | . . 1 . Critical Strikes 1 | . . 1 . Destroy 1 | . . 1 . Melee Attacks . | . . . . Impact . | . . . . Slashing . | . . . . Piercing . | . . . . Sneak Attacks . | . . . . Combat Hostiles . | . . . . Follow-up Attacks . | . . . . Damage Inflicted 853 | . 157 444 252 Guns 853 | . 157 444 252 Cannons . | . . . . Explosions . | . . . . Melee . | . . . . Ramming . | . . . . Kinetic 853 | . 157 444 252 Thermal . | . . . . Explosive . | . . . . Electromagnetic . | . . . . Impact . | . . . . Slashing . | . . . . Piercing . | . . . . Highest Corruption . | . . . . Average Corruption . | . . . . Corruption Purged . | . . . . Corruption Blocked . | . . . . Overload Shots . | . . . . Overflow Damage . | . . . . Projectiles . | . . . . Explosions . | . . . . Melee . | . . . . Knockbacks . | . . . . Impact . | . . . . Kinetic . | . . . . Secondary . | . . . . Self-Inflicted Damage . | . . . . Shots . | . . . . Rammed . | . . . . Targets Rammed 1 | . . 1 . Kicked 1 | . . 1 . Crushed . | . . . . Highest Temperature 8 | . 6 8 . Average Temperature 4 | . 6 3 . Received Heat Transfer 213 | . . 87 126 Siege Activations . | . . . . Robots Corrupted . | . . . . Combat Hostiles . | . . . . Parts Fried . | . . . . Impact Corruptions . | . . . . Robots Melted . | . . . . Combat Hostiles . | . . . . Parts Melted . | . . . . Heat Transferred . | . . . . Parts Sabotaged . | . . . . Parts Stolen . | . . . . Parts Stripped . | . . . . Power Chain Reactions . | . . . . Alert | -11 -10 -10 -9 ------- Run | Yrd Mat Min Mat Peak Influence 299 | . 211 299 244 Initial 98 | . . 69 98 Average 149 | . 115 168 183 Maximum Alert Level 1 | . 1 1 1 Low Security (%) 69 | 100 72 74 47 Level 1 30 | . 27 25 52 Level 2 . | . . . . Level 3 . | . . . . Level 4 . | . . . . Level 5 . | . . . . High Security . | . . . . Max Security . | . . . . Squads Dispatched 2 | . 1 . 1 Investigation 2 | . 1 . 1 Extermination . | . . . . Reinforcement . | . . . . Assault . | . . . . Garrison . | . . . . Intercept . | . . . . Searches Triggered . | . . . . Construction Impeded . | . . . . Haulers Reinforced . | . . . . Active Scanning Responses . | . . . . Cargo Convoy Interrupts . | . . . . Stealth | -11 -10 -10 -9 --------- Run | Yrd Mat Min Mat Distress Signals 1 | . 1 . . Communications Jammed . | . . . . Distress Signals . | . . . . Times Spotted 34 | . 10 10 14 Peak Tracking Total 8 | . 5 3 8 Tactical Retreats 2 | . . . 2 Traps | -11 -10 -10 -9 ------- Run | Yrd Mat Min Mat Traps Triggered 2 | . 1 . 1 Indirectly . | . . . . Trap Hack Attempts . | . . . . Triggered . | . . . . Disarmed . | . . . . Reprogrammed . | . . . . Reused . | . . . . Traps Extracted . | . . . . Installed . | . . . . Triggered . | . . . . Machines | -11 -10 -10 -9 ---------- Run | Yrd Mat Min Mat Machines Disabled . | . . . . Max in Single Turn . | . . . . Machines Repaired . | . . . . Machines Dismantled . | . . . . Machines Sabotaged . | . . . . Overloaded Fab Kills . | . . . . Hacking | -11 -10 -10 -9 --------- Run | Yrd Mat Min Mat Machines Accessed 1 | . . . 1 Terminals . | . . . . Fabricators . | . . . . Repair Stations . | . . . . Recycling Units . | . . . . Scanalyzers 1 | . . . 1 Garrison Access . | . . . . Total Hacks 6 | . . . 6 Successful 6 | . . . 6 Failed . | . . . . Catastrophic . | . . . . Database Lockouts . | . . . . Manual . | . . . . Terminals . | . . . . Fabricators . | . . . . Repair Stations . | . . . . Recycling Units . | . . . . Scanalyzers 6 | . . . 6 Garrison Access . | . . . . Terminal Hacks . | . . . . Fabricator Hacks . | . . . . Repair Station Hacks . | . . . . Recycling Unit Hacks . | . . . . Scanalyzer 6 | . . . 6 Insert Component 3 | . . . 3 Analyze 3 | . . . 3 Garrison Access Hacks . | . . . . Unauthorized Hacks . | . . . . Terminals . | . . . . Fabricators . | . . . . Repair Stations . | . . . . Recycling Units . | . . . . Scanalyzers . | . . . . Garrison Access . | . . . . Data Cores Recovered . | . . . . Used . | . . . . Hacking Detections 1 | . . . 1 Full Trace Events 1 | . . . 1 Feedback Events . | . . . . Feedback Blocked . | . . . . Robot Schematics Acquired . | . . . . Robots Built . | . . . . Authchips . | . . . . Time . | . . . . Total Robot Build Rating . | . . . . Part Schematics Acquired 3 | . . . 3 Parts Built . | . . . . Authchips . | . . . . Time . | . . . . Total Part Build Rating . | . . . . Parts Repaired . | . . . . Time . | . . . . Parts Recycled . | . . . . Recycled Matter . | . . . . Retrieved Matter . | . . . . Retrieved Components . | . . . . Parts Scanalyzed 3 | . . . 3 Part Schematics Acquired 3 | . . . 3 Parts Damaged . | . . . . Bothacking | -11 -10 -10 -9 ------------ Run | Yrd Mat Min Mat Used RIF Installer . | . . . . Robots Hacked . | . . . . Non-combat . | . . . . Combat . | . . . . Robot Hacks Applied . | . . . . Relay Couplers Released . | . . . . Fabnet Peak Effective % . | . . . . Robots Rewired . | . . . . Allies Hacked . | . . . . Hacks Repelled . | . . . . Allies | -11 -10 -10 -9 -------- Run | Yrd Mat Min Mat Total Allies . | . . . . Largest Group . | . . . . Highest-Rated Group . | . . . . Highest-Rated Ally . | . . . . Total Orders . | . . . . Ally Attacks . | . . . . Total Damage . | . . . . Kills . | . . . . Allies Corrupted . | . . . . Allies Melted . | . . . . Intel | -11 -10 -10 -9 ------- Run | Yrd Mat Min Mat Robot Analysis Total . | . . . . Derelict Logs Recovered 1 | . . 1 . Drone Launches . | . . . . Drone Recoveries . | . . . . Exploration | -11 -10 -10 -9 ------------- Run | Yrd Mat Min Mat Turns Passed 746 | 55 138 380 173 Spaces Moved 606 | 54 114 334 104 Core 2 | 2 . . . Treads . | . . . . Legs 165 | . . 61 104 Wheels 439 | 52 114 273 . Hover . | . . . . Flight . | . . . . Fastest Speed 50 | 50 80 80 120 Average Speed 90 | 78 80 87 120 Slowest Speed 120 | 80 80 120 120 Overloaded Moves . | . . . . Propulsion Burnouts . | . . . . Robots Hopped . | . . . . Cave-ins Triggered . | . . . . Exploration Rate (%) 30 | 4 36 63 17 Regions Visited 3 Branch Regions 1 Pre-discovered Areas 1 | . . 1 . Known Exits Taken 1 | . . 1 . Unknown Exits Taken 2 | 1 1 . . Scrap Searched 1 | . . 1 . Spaces Dug . | . . . . Terrain Destroyed . | . . . . Melee . | . . . . Projectile . | . . . . AOE . | . . . . Terrain Rammed . | . . . . Walls Destroyed . | . . . . Machines Disabled . | . . . . Actions | -11 -10 -10 -9 --------- Run | Yrd Mat Min Mat Total 689 | 63 134 367 125 Wait 11 | . 4 . 7 Move 603 | 53 113 333 104 Hop . | . . . . Pick Up 10 | 4 4 2 . Fast Attach 8 | 6 . 1 1 Attach 2 | . . 2 . Detach . | . . . . Swap . | . . . . Drop 1 | . . 1 . Fire 53 | . 13 27 13 Melee . | . . . . Ram . | . . . . Kick 1 | . . 1 . Crush . | . . . . Escape Stasis . | . . . . Rewire . | . . . . Trap . | . . . . Miscellaneous . | . . . . Route ------- -11/Scrapyard -10/Materials -10/Mines (discovered 2 exits: *Mat x2) -9/Materials History --------- Turn | Location | Event 6 | -11/Scrapyard | Discovered new exit (range 16) 56 | -11/Scrapyard | Entered Materials 129 | -10/Materials | Discovered new exit (range 8) 194 | -10/Materials | Entered Mines 202 | -10/Mines | Identified exit to Materials 304 | -10/Mines | Build established: Mutant 418 | -10/Mines | Learned location of Storage (-9) 568 | -10/Mines | Discovered exit to Materials (range 5) 574 | -10/Mines | Entered Materials 574 | -9/Materials | Evolved 2 slots: Propulsion x2 747 | -9/Materials | Self-destructed Last Messages --------------- K-01 Serf collects debris. Connecting with Scanalyzer... >>Insert(Lgt. Ion Engine) Scanning Lgt. Ion Engine... Ready to analyze. >>Scanalyze Scanning: Lgt. Ion Engine... Schematic downloaded. >>Insert(Grenade Launcher) Scanning Grenade Launcher... Ready to analyze. >>Scanalyze Scanning: Grenade Launcher... Schematic downloaded. >>Insert(Lgt. Assault Rifle) Scanning Lgt. Assault Rifle... Ready to analyze. >>Scanalyze Scanning: Lgt. Assault Rifle... Schematic downloaded. Map ----- +----------------------------------------------------+ | ????????????# [ ! #??????????????????????????? | | ????????????# #??????????????????????????? | | ???????????######+#####??????????????????????????? | | ???????????# #?????????????????????????????? | | ???????????# ##########????????????????????? | | ???????????# ????????????????? | | ????????######## ????????????????? | | ????????# # """ ????????????????? | | ????????# # """ #####?????????????????? | | ????????# ! "" + """ #?????????????????????? | | ????????# T" # #?????????????????????? | | ????????# "" # ###???????????????????? | | ????????# # """ ???????????????????? | | ????????#/###### """ ???????????????????? | | ######### #????# """ "???????????????????? | | # #????# """?????????????????? | | # ###### """ ????????????????? | | # """ ?????????????????? | | + ! """ ?????????????????? | | # [*%[ """ """ #??"???????????? | | ###+#### """ # ""???????????? | | ## % # """ Y/ "????????????? | | ## # """ #??????????????? | | ########## !!!# """ gg #??????????????? | | ?????????# !!!# """ g #??????????????? | | ?????????# !! # @ g[b #??????????????? | | ?????????# # #######g#??????????????? | | ??####???# #[ """ #??????????????????????? | | ? ??# # """ #??????????????????????? | | ? """??# # """ #??????????????????????? | | """ ####+### u #??????????????????????? | | """ # #??????????????????????? | | + #??????????????????????? | | """ # #??????????????????????? | | """ ###+#####+#########??????????????????????? | | ? """??# | #??????????????????????????? | | ? ??# "" #??????????????????????????? | | ??####???# """ """ """#??????????????????????????? | | ?????????# """ """ S"#??????????????????????????? | | ?????????# """ """ #??????????????????????????? | | ?????????# !#??????????????????????????? | | ?????????##############??????????????????????????? | | ?????????????????????????????????????????????????? | | ?????????????????????????????????????????????????? | | ?????????????????????????????????????????????????? | | ?????????????????????????????????????????????????? | | ?????????????????????????????????????????????????? | | ?????????????????????????????????????????????????? | | ?????????????????????????????????????????????????? | | ?????????????????????????????????????????????????? | +----------------------------------------------------+ Best States ------------- Heat Dissipation 42 Energy Generation 10 Energy Capacity 250 Matter Stores 268 Matter Capacity 300 Sight Range 16 Terrain Scan Density 10 Resistance: KI 20 Resistance: TH 20 Resistance: EX 20 Resistance: EM 20 Resistance: I 20 Resistance: S 20 Resistance: P 20 Evasion (%) 55 Offensive Hacking 10 Item Schematics ----------------- Lgt. Ion Engine | -9/Materials | Scanalyzed Grenade Launcher | -9/Materials | Scanalyzed Lgt. Assault Rifle | -9/Materials | Scanalyzed Robot Schematics ------------------ None Fabricated ------------ Nothing Alien Tech Used ----------------- None Achievements -------------- None Challenges ------------ None Game ------ Seed SegregatorFortressWeb Manual? 0 Play Time 00:08:43 Cumulative 8.6 hours Start 2024.04.06 @ 16:29:21 End 2024.04.06 @ 16:36:24 Sessions 1 Manual Loads 0 Difficulty Adventurer Special Mode None Game No. 8 Rogue 0 Adventurer 8 Explorer 0 Win Type - Total 0 Types 0/0/0/0/0/0/0/0/0 Lore% 4 Gallery% 17 Achievement% 14 Wizard Run 0 Options --------- Layout 1 ASCII 0 Keyboard 0 Movement Numpad Keybinds 0 Fullscreen 2 Font 32/SmallcapsGlow Map View 50x35 Zoom Use 0% Tactical HUD 0 Map Filters NONE Filters NONE Steam 0 RUN: 11988057-c17b-49b2-8ccc-d5b92985e9fd